bitfinex-derivatives/quotes_ETHF0:USTF0_20240920
["timestamp","ask_amount","ask_price","bid_price","bid_amount"]
[1726813527054,0.39251,2547.3,2547.0,1.17005]
[1726813527256,3.07,2547.4,2547.0,0.7775]
[1726813527456,3.2078,2547.5,2547.0,0.7775]
[1726813527660,19.89394,2548.2,2547.1,0.39253]
[1726813527661,0.3925,2547.4,2547.1,0.39253]
[1726813527958,0.39249,2547.5,2547.1,0.39254]
[1726813528148,0.39249,2547.4,2547.1,0.39254]
[1726813529365,0.39252,2547.2,2547.0,0.7775]
[1726813529662,3.46253,2547.2,2547.0,0.7775]
[1726813530052,0.39253,2547.2,2547.0,0.7775]
[1726813531852,0.39255,2547.0,2546.9,0.4161]
[1726813532067,0.39255,2547.0,2546.5,4.59062]
[1726813532068,0.39257,2546.9,2546.5,4.59062]
[1726813532265,3.46259,2546.8,2546.5,0.77702]
[1726813532864,3.07,2546.8,2546.5,0.3844]
[1726813533273,0.39261,2546.7,2546.5,0.3844]
[1726813534870,3.2078,2546.9,2546.5,0.77702]
[1726813534871,3.60038,2546.9,2546.5,0.77702]
[1726813535168,3.60038,2546.9,2546.6,0.39261]
[1726813535169,3.2078,2546.9,2546.6,0.39261]
[1726813535471,3.60037,2546.9,2546.5,0.77702]
[1726813536271,0.39259,2546.8,2546.5,0.3844]
[1726813536574,3.60038,2546.9,2546.5,0.77702]
[1726813537167,0.39259,2546.8,2546.5,0.77702]
[1726813537366,3.60038,2546.9,2546.5,0.77702]
[1726813537860,3.2078,2546.9,2546.6,0.39261]
[1726813538064,3.60038,2546.9,2546.5,0.77702]
[1726813538967,3.07,2547.0,2546.5,0.77702]
[1726813538968,0.39259,2546.8,2546.5,0.77702]
[1726813539382,3.07,2547.0,2546.5,0.77702]
[1726813539383,0.39258,2546.9,2546.5,0.77702]
[1726813539874,0.39259,2546.8,2546.5,0.77702]
[1726813540671,0.39258,2546.9,2546.5,0.3844]
[1726813540870,0.39259,2546.8,2546.5,0.77702]
[1726813541273,3.07,2547.0,2546.6,0.39262]
[1726813541274,0.39258,2546.9,2546.6,0.39262]
[1726813541577,3.07,2547.0,2546.5,0.3844]
[1726813541777,0.39259,2546.8,2546.5,0.77703]
[1726813543574,3.07,2546.8,2546.5,0.3844]
[1726813543778,0.39262,2546.6,2546.5,0.3844]
[1726813544380,3.07,2546.6,2546.2,3.60047]
[1726813544585,0.39266,2546.3,2546.1,1.58929]
[1726813544774,3.46268,2546.2,2546.1,0.4018]
[1726813545678,3.07,2546.2,2545.9,3.2078]
[1726813545878,0.39271,2546.0,2545.9,0.4018]
[1726813546077,3.07,2546.2,2545.9,0.4018]
[1726813546274,0.39271,2546.0,2545.9,0.4018]
[1726813546474,0.3927,2546.1,2545.9,0.4018]
[1726813547181,0.39269,2546.2,2545.9,0.4018]
[1726813547488,0.39269,2546.2,2546.0,0.3911]
[1726813550880,0.3813,2546.3,2546.0,0.3911]
[1726813551072,0.77397,2546.3,2546.0,0.3911]
[1726813553087,0.39267,2546.3,2546.0,0.3911]
[1726813554182,0.39267,2546.3,2546.0,0.78381]
[1726813554389,0.39267,2546.3,2546.0,0.3911]
[1726813554589,0.39265,2546.4,2546.0,0.3911]
[1726813554799,0.39264,2546.5,2546.1,3.07]
[1726813555087,3.07,2546.8,2546.2,0.3886]
[1726813555277,0.3926,2546.8,2546.4,0.39264]
[1726813555587,0.3926,2546.7,2546.4,0.39264]
[1726813555784,0.3926,2546.8,2546.5,0.79483]
[1726813555975,0.3926,2546.8,2546.6,0.4059]
[1726813556288,0.3926,2546.8,2546.7,0.4017]
[1726813557387,0.3926,2546.8,2546.5,0.4022]
[1726813557388,3.9264,2546.8,2546.5,0.4022]
[1726813557694,0.39262,2546.6,2546.5,0.4022]
[1726813561686,0.39264,2546.5,2546.2,1.18087]
[1726813561896,0.78144,2546.5,2546.2,1.57907]
[1726813562287,0.78144,2546.5,2546.3,0.39266]
[1726813563592,3.07,2546.7,2546.2,1.1864]
[1726813563788,3.07,2546.7,2546.4,0.39264]
[1726813563789,0.39263,2546.6,2546.4,0.39264]
[1726813564489,0.39261,2546.7,2546.4,0.39264]
[1726813564694,0.39262,2546.6,2546.3,0.39265]
[1726813564892,0.39262,2546.6,2546.4,0.39264]
[1726813565191,0.39262,2546.6,2546.4,0.39265]
[1726813566089,3.07,2546.7,2546.2,1.57907]
[1726813566286,0.39265,2546.4,2546.2,1.57907]
[1726813567090,0.39265,2546.4,2546.2,5.50627]
[1726813567297,0.39264,2546.5,2546.2,5.50627]
[1726813567500,4.43034,2546.7,2546.2,1.1864]
[1726813567696,0.39266,2546.3,2546.2,1.1864]
[1726813570497,0.378,2546.4,2546.2,1.1864]
[1726813570685,0.77066,2546.4,2546.2,1.1864]
[1726813571085,0.39266,2546.3,2546.2,1.1864]
[1726813571493,0.39266,2546.3,2546.2,0.3823]
[1726813571703,0.77536,2546.3,2546.2,0.3823]
[1726813573995,7.04845,2546.4,2546.2,0.3823]
[1726813574197,7.04846,2546.4,2546.2,0.3823]
[1726813574495,7.04846,2546.4,2546.3,0.7816]
[1726813575400,7.04846,2546.4,2545.6,4.198]
[1726813575401,0.39267,2546.3,2546.0,0.39271]
[1726813576397,6.6558,2546.4,2545.7,3.07]
[1726813576695,0.39266,2546.3,2546.0,0.3927]
[1726813577707,7.04846,2546.4,2546.1,0.39269]
[1726813578203,3.5858,2546.4,2546.2,0.39267]
[1726813578599,3.5858,2546.4,2546.3,0.8022]
[1726813579105,3.97845,2546.4,2546.3,0.8022]
[1726813580201,3.97845,2546.4,2546.3,1.19486]
[1726813580202,3.5858,2546.4,2546.3,1.19486]
[1726813580599,3.5858,2546.4,2546.3,0.8022]
[1726813581002,0.378,2546.4,2546.3,1.19486]
[1726813581209,0.378,2546.4,2546.3,0.8022]
[1726813581598,3.5858,2546.4,2546.3,0.8022]
[1726813582201,0.378,2546.4,2546.3,1.19486]
[1726813582816,0.378,2546.4,2546.3,0.8022]
[1726813583515,0.378,2546.4,2546.3,1.19486]
[1726813584613,0.378,2546.4,2546.3,0.8022]
[1726813584811,0.77065,2546.4,2546.3,0.8022]
[1726813585011,0.378,2546.4,2546.3,0.8022]
[1726813586014,0.77533,2546.6,2546.3,1.19486]
[1726813586214,0.39262,2546.6,2546.4,0.392]
[1726813586720,0.39262,2546.6,2546.4,0.78465]
[1726813587215,0.39262,2546.6,2546.4,0.392]
[1726813588520,0.39262,2546.6,2546.4,0.78465]
[1726813588723,6.2778,2546.7,2546.3,0.8022]
[1726813589021,0.39265,2546.4,2546.3,0.8022]
[1726813589520,3.98725,2546.4,2546.3,0.4086]
[1726813589717,0.39267,2546.3,2546.1,1.20768]
[1726813590911,3.98726,2546.4,2546.1,1.20768]
[1726813592309,0.39267,2546.3,2546.1,1.20768]
[1726813593116,3.98726,2546.4,2546.1,1.20768]
[1726813593822,0.39267,2546.3,2546.1,0.815]
[1726813594123,0.39268,2546.2,2546.1,0.815]
[1726813594308,0.39269,2546.1,2545.8,0.39273]
[1726813594515,0.39269,2546.1,2545.8,0.78213]
[1726813594714,0.3757,2546.0,2545.8,0.78213]
[1726813594911,0.3757,2546.0,2545.8,0.3894]
[1726813595126,0.3757,2546.0,2545.8,0.78213]
[1726813595314,0.3757,2546.0,2545.8,0.78214]
[1726813595913,0.76841,2546.0,2545.8,0.78214]
[1726813596316,0.76841,2546.0,2545.8,0.3894]
[1726813596619,0.3757,2546.0,2545.8,0.78214]
[1726813597323,0.3757,2546.0,2545.8,0.3894]
[1726813597623,0.3757,2546.0,2545.8,0.78213]
[1726813598614,0.3757,2546.0,2545.8,0.78214]
[1726813600124,0.3757,2546.0,2545.8,0.78213]
[1726813603224,0.3757,2546.0,2545.9,0.39272]
[1726813603419,0.3757,2546.0,2545.8,0.78213]
[1726813608429,0.3757,2546.0,2545.9,0.39272]
[1726813608823,0.3757,2546.0,2545.8,0.3894]
[1726813609023,0.3757,2546.0,2545.8,0.78213]
[1726813616029,0.3757,2546.0,2545.9,0.39272]
[1726813616232,1.41,2546.1,2545.9,0.39272]
[1726813616435,5.0105,2546.1,2545.8,0.78213]
[1726813618136,0.39274,2545.8,2545.7,0.4129]
[1726813618332,0.39276,2545.7,2545.6,1.6397]
[1726813618538,1.8055,2545.7,2545.6,1.6397]
[1726813621434,2.19826,2545.7,2545.6,1.6397]
[1726813621829,1.8055,2545.7,2545.6,1.6397]
[1726813622240,2.19826,2545.7,2545.6,1.6397]
[1726813622634,0.3955,2545.7,2545.6,1.6397]
[1726813622938,1.80273,2545.9,2545.6,2.03246]
[1726813623243,1.80273,2545.9,2545.7,0.3872]
[1726813623627,1.80273,2545.9,2545.7,0.77996]
[1726813623628,1.41,2545.9,2545.7,0.77996]
[1726813623829,0.3949,2546.0,2545.8,0.39274]
[1726813624036,0.39267,2546.3,2546.0,0.39271]
[1726813624232,1.41,2546.2,2546.0,0.39271]
[1726813624432,3.2078,2546.4,2546.1,0.3872]
[1726813624728,1.80268,2546.2,2546.1,0.3872]
[1726813624935,1.41,2546.2,2546.1,0.3872]
[1726813625436,2.19948,2546.2,2546.1,0.3872]
[1726813628539,2.19948,2546.2,2545.9,0.3768]
[1726813628734,1.41,2546.0,2545.9,0.7657]
[1726813629241,1.41,2546.0,2545.9,1.15842]
[1726813632440,1.41,2546.1,2546.0,0.3927]
[1726813632645,1.41,2546.1,2545.9,1.15842]
[1726813634548,1.41,2546.1,2546.0,0.39271]
[1726813634747,1.41,2546.1,2545.9,1.15841]
[1726813639942,1.8038,2546.1,2545.9,1.15841]
[1726813640953,1.41,2546.0,2545.9,1.15841]
[1726813641150,1.41,2546.0,2545.9,1.62360757]
[1726813641351,1.41,2546.0,2545.9,1.23089757]
[1726813641549,1.41,2546.0,2545.9,1.62361757]
[1726813641854,1.41,2546.0,2545.9,1.15842]
[1726813642157,1.41,2546.0,2545.9,0.7657]
[1726813642357,1.41,2546.0,2545.9,1.15842]
[1726813644951,1.8038,2546.1,2545.9,1.15842]
[1726813645461,1.41,2546.1,2546.0,0.39271]
[1726813645958,1.41,2546.1,2545.9,1.15842]
[1726813647052,1.41,2546.1,2546.0,0.39271]
[1726813647252,2.20417,2546.3,2546.0,0.39271]
[1726813647459,2.20417,2546.3,2546.1,0.4138]
[1726813652760,1.8115,2546.3,2545.9,0.7657]
[1726813652949,0.39272,2546.0,2545.7,0.78685]
[1726813653156,1.41,2545.8,2545.7,0.78685]
[1726813653460,1.41,2545.8,2545.7,0.85917508]
[1726813653765,1.41,2545.8,2545.3,1.42376666]
[1726813653766,0.39279,2545.5,2545.3,1.42376666]
[1726813653952,1.41,2545.4,2545.3,0.78662]
[1726813654558,1.41,2545.4,2545.3,0.3938]
[1726813654953,1.41,2545.4,2545.3,0.78662]
[1726813655260,1.41,2545.4,2545.3,0.3938]
[1726813655458,1.8028,2545.4,2545.3,0.3938]
[1726813655669,1.8028,2545.4,2544.7,5.22894666]
[1726813655670,1.41,2545.4,2544.7,5.22894666]
[1726813655865,3.2078,2545.2,2544.9,0.39288]
[1726813656059,1.41,2545.0,2544.9,0.39288]
[1726813660669,1.41,2545.1,2545.0,0.39285]
[1726813662361,0.39281,2545.4,2545.1,0.39285]
[1726813662560,1.41,2545.2,2545.1,0.39285]
[1726813663055,1.41,2545.2,2545.0,0.39286]
[1726813665367,1.41,2545.2,2545.1,0.39285]
[1726813667363,1.80283,2545.2,2544.9,0.39287]
[1726813667564,1.41,2545.0,2544.9,0.39287]
[1726813667871,1.41,2545.0,2544.9,0.39288]
[1726813672875,0.39283,2545.3,2545.0,0.39286]
[1726813673074,1.41,2545.1,2545.0,0.39286]
[1726813674081,1.41,2545.1,2544.8,1.1991]
[1726813674272,1.41,2545.1,2545.0,0.39286]
[1726813674674,1.41,2545.1,2545.0,4.32166]
[1726813679989,1.41,2545.1,2545.0,0.39286]
[1726813684492,1.41,2545.1,2544.8,1.1991]
[1726813684691,3.9847,2545.5,2544.8,1.59199]
[1726813684692,1.41,2544.9,2544.8,1.59199]
[1726813691393,1.41,2544.9,2544.5,3.2078]
[1726813691598,1.41,2544.6,2544.5,1.16573]
[1726813696495,3.2078,2544.9,2544.7,0.3929]
[1726813696690,0.8251,2545.1,2544.9,0.39287]
[1726813696895,0.8251,2545.1,2545.0,0.8276]
[1726813697091,0.8251,2545.1,2545.0,1.22046]
[1726813697092,1.8205,2545.1,2545.0,1.22046]
[1726813699007,1.8205,2545.1,2545.0,0.8276]
[1726813699201,1.8205,2545.1,2545.0,1.29343127]
[1726813699393,1.8205,2545.1,2545.0,0.8276]
[1726813701496,1.8205,2545.1,2545.0,1.29388406]
[1726813705205,0.4105,2545.1,2545.0,1.29386695]
[1726813705403,0.4105,2545.1,2545.0,0.8276]
[1726813705999,0.4105,2545.1,2545.0,1.29386772]
[1726813707594,0.4105,2545.1,2545.0,0.8276]
[1726813708899,1.8205,2545.1,2545.0,0.8276]
[1726813715009,0.3916,2545.3,2545.0,0.8276]
[1726813715207,0.4155,2545.4,2545.3,0.39282]
[1726813715412,1.41,2545.4,2545.2,0.4031]
[1726813715613,1.41,2545.4,2545.3,0.39281]
[1726813715913,1.41,2545.4,2545.3,0.46600351]
[1726813716106,1.41,2545.4,2545.3,0.85881351]
[1726813716307,1.41,2545.4,2545.3,0.46600351]
[1726813716507,1.41,2545.4,2545.2,0.4031]
[1726813716707,0.3851,2545.3,2545.2,0.4031]
[1726813717308,0.3851,2545.3,2545.2,0.79593]
[1726813717711,0.3851,2545.3,2545.2,1.26185685]
[1726813718217,0.3851,2545.3,2545.2,0.46592685]
[1726813718407,1.17402,2545.3,2544.9,1.42381666]
[1726813718607,1.41,2545.0,2544.9,1.42381666]
[1726813719107,1.41,2545.0,2544.9,1.88974824]
[1726813719307,1.41,2545.0,2544.9,1.88975332]
[1726813720717,1.41,2545.0,2544.9,1.49688332]
[1726813720908,1.80286,2545.0,2544.9,0.466074]
[1726813721110,0.39288,2544.9,2544.7,1.03094666]
[1726813721416,1.41,2544.8,2544.5,1.81037666]
[1726813721711,1.41,2544.6,2544.5,1.81037666]
[1726813721918,1.41,2544.6,2544.5,2.27663755]
[1726813722311,1.41,2544.6,2544.5,1.81037666]
[1726813722611,1.41,2544.6,2544.5,2.27659329]
[1726813725711,1.41,2544.6,2544.5,0.85271663]
[1726813727015,1.41,2544.6,2544.5,0.85271323]
[1726813727411,1.41,2544.6,2544.5,1.24565323]
[1726813727818,1.41,2544.6,2544.4,0.39295]
[1726813728020,0.385,2544.5,2544.4,0.39295]
[1726813728320,0.385,2544.5,2544.4,0.85914173]
[1726813729219,0.385,2544.5,2544.4,0.85913985]
[1726813729617,0.385,2544.5,2544.4,0.8591397]
[1726813731218,1.41,2544.6,2544.5,0.39294]
[1726813731419,1.41,2544.6,2544.5,0.8591297]
[1726813731920,1.41,2544.6,2544.5,1.2667297]
[1726813732817,1.41,2544.6,2544.5,1.26671159]
[1726813733615,1.41,2544.6,2544.4,1.03094666]
[1726813733616,1.41,2544.6,2544.4,0.39295]
[1726813733815,0.3858,2544.5,2544.4,0.7785]
[1726813734513,0.3858,2544.5,2544.4,1.17146]
[1726813734710,0.3858,2544.5,2544.4,0.7785]
[1726813737925,0.3858,2544.5,2544.4,1.17146]
[1726813739830,0.77874,2544.5,2544.4,0.3881]
[1726813740128,7.924,2544.5,2543.9,5.22894666]
[1726813740329,7.924,2544.5,2543.9,0.39303]
[1726813740330,1.41,2544.0,2543.9,0.39303]
[1726813740634,1.41,2544.0,2543.9,0.85930512]
[1726813740831,1.41,2544.0,2543.9,4.79050512]
[1726813741021,1.41,2544.0,2543.9,4.79051387]
[1726813741521,1.41,2544.0,2543.9,4.32423]
[1726813743124,1.41,2544.1,2544.0,0.39302]
[1726813749032,1.41,2544.1,2543.8,1.1997]
[1726813749225,1.41,2543.9,2543.8,1.59274]
[1726813749438,1.41,2543.9,2543.8,1.59275]
[1726813750036,3.6008,2544.2,2544.1,0.393]
[1726813750037,3.2078,2544.2,2544.1,0.393]
[1726813750234,1.41,2544.2,2543.8,6.8001]
[1726813750434,1.41,2544.2,2544.1,0.393]
[1726813764245,1.41,2544.3,2544.1,3.9304]
[1726813764548,1.41,2544.3,2543.8,3.81109065]
[1726813764549,1.41,2544.3,2544.2,1.15868]
[1726813767944,3.9989,2544.6,2544.2,4.6961]
[1726813768244,1.41,2544.5,2544.4,0.39295]
[1726813773039,1.41,2544.5,2544.3,0.79596]
[1726813773440,1.7996,2544.5,2544.3,0.79596]
[1726813775751,1.7996,2544.5,2544.4,0.39296]
[1726813775949,3.588,2544.6,2544.4,0.39295]
[1726813776152,1.41,2544.5,2544.4,0.39295]
[1726813777754,1.41,2544.5,2544.3,0.403]
[1726813778258,1.41,2544.5,2544.4,0.39296]
[1726813782563,1.41,2544.5,2544.4,0.85870457]
[1726813783064,1.41,2544.5,2544.4,0.85871442]
[1726813783251,1.41,2544.5,2544.4,0.39295]
[1726813783452,1.41,2544.5,2544.4,0.85865368]
[1726813783652,1.41,2544.5,2544.4,0.85862359]
[1726813784053,1.41,2544.5,2544.4,1.88957025]
[1726813784253,1.41,2544.5,2544.4,0.85862359]
[1726813786364,0.3802,2544.6,2544.4,0.46567359]
[1726813786365,1.41,2544.6,2544.4,0.46567359]
[1726813786558,1.41,2544.6,2544.5,0.39294]
[1726813787374,1.41,2544.6,2544.5,0.85858923]
[1726813790874,1.41,2544.6,2544.5,0.85861448]
[1726813791168,3.6062,2544.9,2544.8,0.39289]
[1726813791358,5.0162,2544.9,2544.8,0.39289]
[1726813792369,5.0162,2544.9,2544.7,0.39291]
[1726813792566,1.41,2544.8,2544.7,0.39291]
[1726813793367,1.8152,2544.8,2544.7,0.39291]
[1726813799169,0.4052,2544.8,2544.1,5.22894666]
[1726813799373,0.8133,2544.8,2544.4,0.815]
[1726813799677,1.41,2544.5,2544.4,0.815]
[1726813800064,1.41,2544.5,2544.1,1.43604666]
[1726813800264,0.4138,2544.4,2544.3,0.39297]
[1726813800468,3.6192,2544.7,2544.1,1.2313]
[1726813800677,1.41,2544.2,2544.1,1.2313]
[1726813803872,5.3404,2544.2,2543.7,0.3958]
[1726813804076,3.2078,2544.1,2543.7,0.3958]
[1726813804282,1.41,2543.8,2543.7,0.3958]
[1726813804981,1.41,2543.8,2543.6,0.3803]
[1726813805379,0.3992,2543.9,2543.6,0.3803]
[1726813805380,1.41,2543.7,2543.6,0.3803]
[1726813807277,0.3845,2544.0,2543.7,0.39306]
[1726813807577,4.6178,2544.4,2543.8,3.69670122]
[1726813807777,0.274,2544.7,2543.8,3.69670122]
[1726813807778,0.3837,2544.5,2543.9,1.49670122]
[1726813807984,1.41,2544.3,2544.1,0.39299]
[1726813808879,1.41,2544.3,2544.2,0.39299]
[1726813809474,0.3837,2544.5,2544.0,1.42934666]
[1726813809671,1.41,2544.3,2544.2,0.39298]
[1726813809888,3.4537,2544.5,2544.2,0.77438]
[1726813810086,3.4537,2544.5,2544.3,0.3783]
[1726813810286,3.4537,2544.5,2544.3,0.7767]
[1726813815684,3.4537,2544.5,2544.3,1.16967]
[1726813816391,3.4537,2544.5,2544.3,0.7767]
[1726813817385,3.4537,2544.5,2544.3,1.16967]
[1726813818186,3.4537,2544.5,2544.3,0.7767]
[1726813818791,3.4537,2544.5,2544.3,1.16967]
[1726813820782,3.4537,2544.5,2544.1,0.393]
[1726813821388,3.4537,2544.5,2544.2,0.4099]
[1726813821894,3.4537,2544.5,2544.2,0.80288]
[1726813822193,3.4537,2544.5,2544.2,0.4099]
[1726813824090,3.07,2544.3,2544.0,0.39301]
[1726813824393,3.07,2544.1,2544.0,0.39301]
[1726813824799,3.8279,2544.2,2544.1,0.393]
[1726813825493,3.07,2544.5,2543.9,1.1739]
[1726813825691,0.3804,2544.5,2544.0,3.07]
[1726813825892,3.07,2544.6,2544.4,0.39296]
[1726813826192,3.07,2544.6,2544.5,0.754]
[1726813826493,3.2078,2544.7,2544.5,0.754]
[1726813826695,0.8128,2544.9,2544.6,0.3989]
[1726813826696,0.4169,2544.9,2544.6,0.3989]
[1726813826990,0.4169,2544.9,2544.7,0.39291]
[1726813827185,0.4169,2544.9,2544.8,0.39289]
[1726813827387,0.3959,2545.3,2544.7,3.07]
[1726813827587,4.0213,2545.4,2545.3,0.39282]
[1726813827787,3.8835,2545.8,2545.5,0.39278]
[1726813828184,4.121,2546.1,2545.6,3.2078]
[1726813828388,3.07,2546.1,2545.7,0.3766]
[1726813828586,3.07,2545.9,2545.7,0.3766]
[1726813830090,3.07,2545.9,2545.3,4.23244106]
[1726813830294,0.4116,2545.8,2545.5,0.39278]
[1726813831597,3.07,2545.7,2545.4,0.3991]
[1726813831797,3.07,2545.7,2545.4,0.79189]
[1726813832102,3.07,2545.7,2545.4,0.3991]
[1726813832693,4.38843,2545.9,2545.5,0.39277]
[1726813832694,6.2778,2545.9,2545.5,0.39277]
[1726813834197,3.07,2545.9,2545.5,0.39277]
[1726813834905,0.80811,2546.1,2545.4,0.7919]
[1726813834906,3.07,2545.8,2545.4,0.7919]
[1726813835098,3.07,2545.8,2545.5,0.39278]
[1726813835295,0.3823,2545.7,2545.5,0.39278]
[1726813839411,3.4645,2546.1,2545.4,0.3991]
[1726813839703,0.3945,2546.1,2545.8,0.39273]
[1726813839901,0.3945,2546.1,2545.9,0.8121]
[1726813842915,0.3945,2546.1,2545.9,1.20482]
[1726813843307,3.8572,2546.1,2545.7,0.39275]
[1726813844210,3.2078,2545.8,2545.7,0.39275]
[1726813845014,3.4645,2546.1,2545.8,0.39273]
[1726813845311,3.2078,2546.0,2545.8,0.39273]
[1726813845902,3.2078,2546.0,2545.7,0.39275]
[1726813847916,3.46275,2545.8,2545.4,0.7964]
[1726813848109,0.3887,2545.9,2545.5,0.39278]
[1726813848809,0.78143,2545.9,2545.4,1.18919]
[1726813849017,3.07,2545.8,2545.4,0.7964]
[1726813849312,3.2078,2545.7,2545.4,0.7964]
[1726813849518,3.6146,2545.7,2545.4,0.7964]
[1726813849908,4.00736,2545.7,2545.4,0.7964]
[1726813850213,3.07,2545.6,2545.2,0.4111]
[1726813850411,3.07,2545.4,2545.2,0.4111]
[1726813850806,0.3891,2545.3,2545.2,0.4111]
[1726813851207,0.3891,2545.3,2545.0,1.17725]
[1726813851412,3.2078,2545.7,2545.1,0.3777]
[1726813851605,3.2078,2545.7,2545.3,0.39282]
[1726813852105,3.2078,2545.7,2545.4,0.3992]
[1726813852310,3.2078,2545.7,2545.5,0.3819]
[1726813855018,3.2078,2545.7,2545.1,0.3777]
[1726813855019,3.07,2545.6,2544.8,6.2778]
[1726813855210,3.07,2545.6,2544.8,7.4616]
[1726813855415,3.46278,2545.6,2545.0,0.39286]
[1726813856314,3.07,2545.2,2544.8,8.67346194]
[1726813856615,3.07,2545.2,2544.8,1.57669]
[1726813856616,0.4152,2545.1,2544.8,1.57669]
[1726813857209,0.4152,2545.1,2544.8,1.1838]
[1726813857620,3.07,2545.0,2544.8,0.7823]
[1726813857817,3.46286,2545.0,2544.3,0.21598578]
[1726813858022,3.07,2544.7,2544.5,0.39293]
[1726813858418,3.07,2544.7,2544.4,0.8077]
[1726813858618,3.07,2544.7,2544.4,1.20065]
[1726813859115,3.07,2544.7,2544.4,0.8077]
[1726813859627,3.07,2544.7,2544.4,1.20065]
[1726813860117,3.07,2544.7,2544.5,0.39294]
[1726813860323,3.07,2544.7,2544.4,1.20065]
[1726813860710,3.07,2544.7,2544.4,0.8077]
[1726813860711,3.2078,2544.6,2544.4,0.8077]
[1726813860924,3.6136,2544.6,2544.4,0.8077]
[1726813861611,3.07,2544.5,2544.4,0.3918]
[1726813861815,3.07,2544.5,2544.2,3.60078]
[1726813862421,3.6136,2544.6,2544.2,3.2078]
[1726813862629,3.2078,2544.9,2544.5,0.39293]
[1726813862931,3.2078,2544.9,2544.6,0.7769]
[1726813863428,0.3871,2545.1,2544.8,0.39289]
[1726813863635,0.3871,2545.1,2544.7,0.7968]
[1726813864120,3.2078,2545.0,2544.7,0.7968]
[1726813865434,0.3871,2545.1,2544.8,0.39289]
[1726813866538,0.3871,2545.1,2544.7,0.7968]
[1726813866737,6.2778,2545.0,2544.7,0.4039]
[1726813867040,6.2778,2545.0,2544.6,0.7769]
[1726813867241,3.07,2544.8,2544.6,0.7769]
[1726813867429,3.2078,2545.0,2544.7,0.3929]
[1726813867630,3.2078,2545.0,2544.6,1.16982]
[1726813867829,3.2078,2545.0,2544.6,1.16981]
[1726813868540,3.2078,2545.0,2544.7,0.3929]
[1726813869540,3.2078,2545.0,2544.6,1.16982]
[1726813871139,3.07,2544.9,2544.6,0.7769]
[1726813871441,6.2778,2544.7,2544.2,3.60078]
[1726813871633,3.07,2544.5,2544.3,0.39296]
[1726813872041,3.07,2544.5,2544.4,0.39296]
[1726813872338,0.3857,2544.6,2544.4,0.39295]
[1726813872735,3.07,2545.0,2544.2,7.0892]
[1726813872938,3.4557,2545.0,2544.5,0.39293]
[1726813873140,3.4557,2545.0,2544.6,0.4112]
[1726813873336,3.4557,2545.0,2544.7,0.3919]
[1726813874740,3.2078,2544.8,2544.7,0.3919]
[1726813874935,7.1374,2544.8,2544.3,0.8076]
[1726813875135,3.4828,2544.7,2544.3,0.8076]
[1726813875649,0.4056,2544.6,2544.3,1.20056]
[1726813876435,3.6134,2544.6,2544.3,0.39297]
[1726813876943,0.4056,2544.6,2544.3,0.39297]
[1726813878234,0.4056,2544.6,2544.5,0.39294]
[1726813879542,0.4056,2544.6,2544.2,3.2078]
[1726813879543,0.4056,2544.6,2544.4,0.39295]
[1726813879736,3.6134,2544.6,2544.3,0.39297]
[1726813881136,3.6134,2544.6,2544.2,3.2078]
[1726813881333,3.2078,2544.9,2544.3,7.0004]
[1726813881537,3.6226,2545.2,2544.6,6.2778]
[1726813881743,3.2078,2545.2,2545.0,0.39286]
[1726813881941,3.2078,2545.2,2545.1,0.39285]
[1726813882145,0.3861,2545.5,2545.2,0.39283]
[1726813882343,0.3861,2545.5,2544.8,3.07]
[1726813882344,0.3861,2545.5,2545.3,0.381]
[1726813882643,3.4561,2545.5,2545.3,0.381]
[1726813882846,3.8399,2545.5,2545.3,0.381]
[1726813884339,3.4538,2545.5,2545.3,0.381]
[1726813885342,3.4538,2545.5,2545.3,0.77381]
[1726813885541,0.3838,2545.5,2545.4,0.3928]
[1726813885742,3.2078,2545.6,2545.3,0.7738]
[1726813887054,3.07,2545.5,2545.3,0.381]
[1726813887347,3.4587,2545.5,2545.3,0.381]
[1726813888646,3.8503,2545.5,2545.3,0.381]
[1726813889141,3.8503,2545.5,2545.2,0.3822]
[1726813889343,3.07,2545.3,2545.2,0.3822]
[1726813889744,3.07,2545.3,2545.0,0.4157]
[1726813889945,6.67063,2545.3,2545.0,0.4157]
[1726813890251,6.67063,2545.3,2544.8,0.3948]
[1726813890252,3.07,2545.1,2544.8,0.3948]
[1726813890449,3.07,2545.1,2544.8,0.8105]
[1726813890645,0.4159,2545.0,2544.8,0.8105]
[1726813891751,0.4159,2545.0,2544.8,1.20339]
[1726813891948,0.4159,2545.0,2544.8,0.8105]
[1726813893543,3.07,2544.9,2544.2,4.32198505]
[1726813893844,3.07,2544.9,2544.6,0.80212]
[1726813894045,3.07,2544.9,2544.7,0.3965]
[1726813894855,3.2078,2546.6,2544.8,31.39628029]
[1726813895152,3.9296,2546.2,2545.9,3.07]
[1726813895348,3.9296,2546.2,2546.1,3.46269]
[1726813895550,3.07,2547.4,2546.7,0.39259]
[1726813895746,3.9296,2546.8,2546.7,3.07]
[1726813895942,3.9296,2546.8,2546.7,3.4626]
[1726813897052,3.9296,2546.8,2546.7,3.07]